Cogmind - Beta 16 @@@ ROGUE MODE // 2026.02.06 @ 16:41:20 Player: MrFartsburg Result: Destroyed by as-95038 with Assembled Maul Performance ------------- Evolutions (0) 0 Regions Visited (4) 800 Robots Destroyed (7) 35 Value Destroyed (161) 161 Prototype IDs (0) 0 Alien Tech Used (0) 0 Bonus (0) 0 TOTAL SCORE: 996 Bonus ------- None Cogmind --------- Core Integrity 0/250 Matter 230/300 Energy 100/100 System Corruption 16% Temperature Cool (0) Movement Walking (540) Ox6 Location -9/Mines Parts ------- > --- POWER (1) -------- (None) > --- PROPULSION (2) --- Improved Aluminum Leg > --- UTILITY (2) ------ Huge Storage Unit Terrain Scan Processor > --- WEAPON (2) ------- Small Laser > --- INVENTORY (25) --- Light Ion Engine Fission Core Aluminum Leg Light EM Pulse Cannon Peak State ------------ > --- POWER ------------ Ion Engine > --- PROPULSION ------- Aluminum Leg Improved Aluminum Leg > --- UTILITY ---------- Small Storage Unit Terrain Scan Processor > --- WEAPON ----------- Light Assault Rifle Light Assault Rifle > --- INVENTORY -------- Fission Core Aluminum Leg Small Laser Welding Torch [Rating: 9] Favorites ----------- Power Ion Engine Engine Ion Engine Propulsion Aluminum Leg Treads Light Treads Leg Aluminum Leg Utility Small Storage Unit Storage Small Storage Unit Processor Terrain Scan Processor Protection Backup Plating I Weapon Medium Laser Energy Gun Medium Laser Ballistic Gun Light Assault Rifle Launcher Grenade Launcher Special Weapon Welding Torch Build | -11 -10 -10 -10 -9 ------- Run | Yrd Mat Min Exi Min Slots Evolved . | . . . . . Power . | . . . . . Propulsion . | . . . . . Utility . | . . . . . Weapon . | . . . . . Parts Attached 21 | 8 3 . . 10 Power 3 | 1 . . . 2 Engine 3 | 1 . . . 2 Core . | . . . . . Reactor . | . . . . . Propulsion 6 | 4 . . . 2 Treads 2 | 2 . . . . Leg 4 | 2 . . . 2 Wheel . | . . . . . Hover . | . . . . . Flight . | . . . . . Utility 5 | 1 2 . . 2 Device . | . . . . . Storage 3 | 1 1 . . 1 Processor 1 | . . . . 1 Hackware . | . . . . . Protection 1 | . 1 . . . Artifact . | . . . . . Weapon 7 | 2 1 . . 4 Energy Gun 2 | 1 . . . 1 Energy Cannon . | . . . . . Ballistic Gun 2 | 1 . . . 1 Ballistic Cannon . | . . . . . Launcher 1 | . 1 . . . Special Weapon 2 | . . . . 2 Impact Weapon . | . . . . . Slashing Weapon . | . . . . . Piercing Weapon . | . . . . . Special Melee Weapon . | . . . . . Unidentified Prototypes . | . . . . . Parts Lost 12 | . . . . 12 Power 3 | . . . . 3 Propulsion 2 | . . . . 2 Utility 2 | . . . . 2 Weapon 5 | . . . . 5 Highest Loss Streak 4 | . . . . 4 To Critical Strikes . | . . . . . Average Backups 6 | 2 7 8 8 5 Power 1 | . 1 1 1 1 Propulsion 2 | 1 3 2 2 1 Utility . | . . 1 1 . Weapon 2 | . 2 3 3 1 Tool/Special . | . . . . . Unused Backups 6 | . 2 . 1 3 Power 4 | . . . 1 3 Propulsion 2 | . 2 . . . Utility . | . . . . . Weapon . | . . . . . Tool/Special . | . . . . . Average Slot Usage (%) 93 | . 97 100 100 85 Engine 11 | . 14 14 14 8 Treads 4 | . . . . 11 Leg 22 | . 28 28 28 16 Storage 14 | . 14 14 14 14 Processor 2 | . . . . 5 Protection 10 | . 11 14 14 6 Energy Gun 10 | . 14 14 14 5 Ballistic Gun 7 | . 6 . . 13 Launcher 6 | . 7 14 14 . Special Weapon 1 | . . . . 3 Peak Build Rating 9 | 6 7 7 8 9 Average Rating 6 | 4 6 7 7 7 On Entrance 5 | . 6 7 7 8 Avg Prop Armor Cover (%) . | . . . . . Naked Turns . | . . . . . Heaviest Build 87 | 13 16 16 16 87 Greatest Support 40 | 40 20 20 20 40 Greatest Overweight (x) 6 | . . . . 6 Average Overweight (x) . | . . . . . Largest Inventory Capacity 25 | 8 8 8 8 25 Average Capacity 8 | 7 8 8 8 10 Most Carried 8 | 5 8 8 8 8 Average Carried 6 | 2 7 8 8 5 Final Capacity 25 | 8 8 8 8 25 Final Carried 8 | 4 8 8 8 4 Class Distribution -------------------- 85% | Mutant 14% | Scavenger-Mutant Dominant Class ---------------- Mutant | -10/Materials Mutant | -10/Mines Mutant | -10/Exiles Mutant | -9/Mines Resources | -11 -10 -10 -10 -9 ----------- Run | Yrd Mat Min Exi Min Matter Collected 416 | 216 . 54 . 146 Remotely . | . . . . . Salvage Created 156 | . 57 . . 99 Parts 11 | . 2 . . 9 Haulers Intercepted . | . . . . . Recyclers Shooed . | . . . . . Parts Field Recycled . | . . . . . Retrieved Matter . | . . . . . Parts Self-Destructed . | . . . . . Prevented . | . . . . . Parts Restored . | . . . . . Kills | -11 -10 -10 -10 -9 ------- Run | Yrd Mat Min Exi Min Combat Hostiles Destroyed 8 | . 1 . . 7 Melee 1 | . . . . 1 Guns 6 | . 1 . . 5 Cannons 1 | . . . . 1 Classes Destroyed 5 | . 2 . . 3 Recycler 1 | . 1 . . . Swarmer 3 | . . . . 3 Grunt 2 | . 1 . . 1 Duelist 1 | . . . . 1 Assembled 2 | . . . . 2 Best Kill Streak 2 | . 2 . . 2 Combat Bots Only 2 | . 1 . . 2 Max Kills in Single Turn 1 | . 1 . . 1 Gunslinging . | . . . . . Exploded . | . . . . . Melee 1 | . . . . 1 Uniques/NPCs Destroyed . | . . . . . Combat | -11 -10 -10 -10 -9 -------- Run | Yrd Mat Min Exi Min Hostile Shots Fired 179 | . 4 . . 175 Missed 51 | . . . . 51 Hits 128 | . 4 . . 124 Melee 22 | . . . . 22 Projectile 106 | . 4 . . 102 Critical Strikes 3 | . . . . 3 Damage Taken 1497 | . 40 . . 1457 Core 261 | . . . . 261 Absorbed by Shields . | . . . . . Core Remaining (%) 100 | 100 . . . . Volleys Fired 31 | . 4 . . 27 Largest 2 | . 2 . . 2 Hottest 80 | . 80 . . 80 Shots Fired 55 | . 7 . . 48 Gun 45 | . 4 . . 41 Cannon . | . . . . . Launcher 4 | . 3 . . 1 Special 6 | . . . . 6 Kinetic 33 | . . . . 33 Thermal 18 | . 4 . . 14 Explosive 4 | . 3 . . 1 Electromagnetic . | . . . . . Robot Hit Streak 11 | . 3 . . 11 Robot Miss Streak 1 | . 1 . . 1 Penetration Max . | . . . . . Secondary Targets . | . . . . . Shots Hit Robots 35 | . 4 . . 31 Core Hits 23 | . 4 . . 19 Critical Kills . | . . . . . Critical Parts Destroyed . | . . . . . Critical Strikes . | . . . . . Melee Attacks . | . . . . . Impact . | . . . . . Slashing . | . . . . . Piercing . | . . . . . Sneak Attacks . | . . . . . Combat Hostiles . | . . . . . Follow-up Attacks . | . . . . . Damage Inflicted 465 | . 117 . . 348 Guns 294 | . 37 . . 257 Cannons . | . . . . . Explosions 128 | . 80 . . 48 Melee . | . . . . . Ramming 33 | . . . . 33 Kinetic 184 | . . . . 184 Thermal 120 | . 37 . . 83 Explosive 128 | . 80 . . 48 Electromagnetic . | . . . . . Impact . | . . . . . Slashing . | . . . . . Piercing . | . . . . . Highest Corruption 16 | . . . . 16 Average Corruption 12 | . . . . 12 Corruption Purged . | . . . . . Corruption Blocked . | . . . . . Effects 10 | . . . . 10 Matter Fused 2 | . . . . 2 Heat Flow Errors 1 | . . . . 1 Parts Rejected 1 | . . . . 1 Data Loss (minor) 3 | . . . . 3 Data Loss (major) 2 | . . . . 2 Misdirections 1 | . . . . 1 Overload Shots . | . . . . . Overflow Damage . | . . . . . Projectiles . | . . . . . Explosions . | . . . . . Melee . | . . . . . Knockbacks . | . . . . . Impact . | . . . . . Kinetic . | . . . . . Secondary . | . . . . . Self-Inflicted Damage 24 | . . . . 24 Shots 1 | . . . . 1 Rammed 7 | . . . . 7 Targets Rammed 13 | . . . . 13 Kicked 5 | . . . . 5 Crushed 1 | . . . . 1 Highest Temperature 140 | . 81 . . 140 Average Temperature 34 | . 39 . . 31 Received Heat Transfer 48 | . 24 . . 24 Siege Activations . | . . . . . Martial Activations . | . . . . . Shielding Activations . | . . . . . Robots Disrupted . | . . . . . Combat Hostiles . | . . . . . Robots Corrupted . | . . . . . Combat Hostiles . | . . . . . Parts Fried . | . . . . . Impact Corruptions . | . . . . . Robots Melted . | . . . . . Combat Hostiles . | . . . . . Parts Melted . | . . . . . Heat Transferred 384 | . 111 . . 273 Parts Sabotaged . | . . . . . Parts Stolen . | . . . . . Parts Stripped . | . . . . . Power Chain Reactions . | . . . . . Alert | -11 -10 -10 -10 -9 ------- Run | Yrd Mat Min Exi Min Maximum Alert Level . | . . . . . Low Security (%) 100 | 100 100 100 . 100 Level 1 . | . . . . . Level 2 . | . . . . . Level 3 . | . . . . . Level 4 . | . . . . . Level 5 . | . . . . . High Security . | . . . . . Max Security . | . . . . . Peak Influence 75 | . 54 20 . 75 Initial 12 | . . 12 . . Average 17 | . 13 5 . 30 Influence Increases 314 | . 69 30 . 215 Destroy 0b10 Robot/C 120 | . 20 . . 100 Destroy 0b10 Robot/NC 5 | . 5 . . . Destroy Leader 30 | . 10 . . 20 Successful Hack 15 | . 15 . . . Disable Machine 15 | . . . . 15 Destroy Structure 24 | . 19 . . 5 Lose Combat Pursuer 105 | . . 30 . 75 Influence Decreases 314 | . 36 63 . 215 Entered New Map 21 | . . 21 . . Time Decay 198 | . 36 42 . 120 Lost Part 95 | . . . . 95 Squads Dispatched 2 | . 2 . . . Investigation 1 | . 1 . . . Extermination . | . . . . . Reinforcement 1 | . 1 . . . Assault . | . . . . . Garrison . | . . . . . Intercept . | . . . . . Searches Triggered . | . . . . . Construction Impeded . | . . . . . Haulers Reinforced . | . . . . . Active Scanning Responses . | . . . . . Cargo Convoy Interrupts . | . . . . . Stealth | -11 -10 -10 -10 -9 --------- Run | Yrd Mat Min Exi Min Distress Signals . | . . . . . Communications Jammed . | . . . . . Distress Signals . | . . . . . Times Spotted 21 | . 2 2 . 17 Peak Tracking Total 6 | . 1 2 . 6 Tactical Retreats 3 | . . 1 . 2 Traps | -11 -10 -10 -10 -9 ------- Run | Yrd Mat Min Exi Min Traps Triggered . | . . . . . Indirectly . | . . . . . Trap Hack Attempts . | . . . . . Triggered . | . . . . . Disarmed . | . . . . . Reprogrammed . | . . . . . Reused . | . . . . . Traps Extracted . | . . . . . Installed . | . . . . . Triggered . | . . . . . Machines | -11 -10 -10 -10 -9 ---------- Run | Yrd Mat Min Exi Min Machines Disabled 1 | . . . . 1 Max in Single Turn 1 | . . . . 1 Machines Repaired . | . . . . . Machines Dismantled . | . . . . . Machines Sabotaged . | . . . . . Overloaded Fab Kills . | . . . . . Hacking | -11 -10 -10 -10 -9 --------- Run | Yrd Mat Min Exi Min Machines Accessed 3 | . 3 . . . Terminals 1 | . 1 . . . Fabricators . | . . . . . Repair Stations 1 | . 1 . . . Recycling Units 1 | . 1 . . . Scanalyzers . | . . . . . Garrison Access . | . . . . . Total Hacks 6 | . 6 . . . Successful 3 | . 3 . . . Failed 3 | . 3 . . . Catastrophic 1 | . 1 . . . Database Lockouts . | . . . . . Manual . | . . . . . Terminals 3 | . 3 . . . Fabricators . | . . . . . Repair Stations 1 | . 1 . . . Recycling Units 2 | . 2 . . . Scanalyzers . | . . . . . Garrison Access . | . . . . . Terminal Hacks 2 | . 2 . . . Locate Traps 1 | . 1 . . . Zone Layout 1 | . 1 . . . Fabricator Hacks . | . . . . . Repair Station Hacks 1 | . 1 . . . Refit 1 | . 1 . . . Recycling Unit Hacks . | . . . . . Scanalyzer . | . . . . . Garrison Access Hacks . | . . . . . Unauthorized Hacks . | . . . . . Terminals . | . . . . . Fabricators . | . . . . . Repair Stations . | . . . . . Recycling Units . | . . . . . Scanalyzers . | . . . . . Garrison Access . | . . . . . Data Cores Recovered . | . . . . . Used . | . . . . . Hacking Detections 2 | . 2 . . . Full Trace Events 1 | . 1 . . . Feedback Events . | . . . . . Feedback Blocked . | . . . . . Robot Schematics Acquired . | . . . . . Robots Built . | . . . . . Authchips . | . . . . . Time . | . . . . . Total Robot Build Rating . | . . . . . Part Schematics Acquired . | . . . . . Parts Built . | . . . . . Authchips . | . . . . . Time . | . . . . . Total Part Build Rating . | . . . . . Part Studies Acquired . | . . . . . Parts Repaired . | . . . . . Time . | . . . . . Parts Recycled . | . . . . . Recycled Matter . | . . . . . Retrieved Matter . | . . . . . Retrieved Components . | . . . . . Parts Scanalyzed . | . . . . . Part Schematics Acquired . | . . . . . Parts Damaged . | . . . . . Bothacking | -11 -10 -10 -10 -9 ------------ Run | Yrd Mat Min Exi Min Used RIF Installer . | . . . . . Robots Hacked . | . . . . . Non-combat . | . . . . . Combat . | . . . . . Robot Hacks Applied . | . . . . . Relay Couplers Released . | . . . . . Fabnet Peak Effective % . | . . . . . Robots Rewired . | . . . . . Allies Hacked . | . . . . . Hacks Repelled . | . . . . . Allies | -11 -10 -10 -10 -9 -------- Run | Yrd Mat Min Exi Min Total Allies . | . . . . . Largest Group . | . . . . . Highest-Rated Group . | . . . . . Highest-Rated Ally . | . . . . . Total Orders . | . . . . . Ally Attacks . | . . . . . Total Damage . | . . . . . Kills . | . . . . . Allies Corrupted . | . . . . . Allies Melted . | . . . . . Intel | -11 -10 -10 -10 -9 ------- Run | Yrd Mat Min Exi Min Active Infowar (turns) . | . . . . . Robot Analysis Total . | . . . . . Derelict Logs Recovered 1 | . . 1 . . Drone Launches . | . . . . . Drone Recoveries . | . . . . . Exploration | -11 -10 -10 -10 -9 ------------- Run | Yrd Mat Min Exi Min Turns Passed 832 | 79 190 188 43 332 Spaces Moved 521 | 46 140 157 37 141 Core 12 | 12 . . . . Treads 78 | 33 . . . 45 Legs 431 | 1 140 157 37 96 Wheels . | . . . . . Hover . | . . . . . Flight . | . . . . . Fastest Speed 50 | 50 120 120 120 120 Average Speed 130 | 130 120 120 120 154 Slowest Speed 540 | 160 120 120 120 540 Overloaded Moves . | . . . . . Propulsion Burnouts . | . . . . . Robots Hopped . | . . . . . Potential Cave-ins . | . . . . . Cave-ins Triggered . | . . . . . Exploration Rate (%) 29 | 4 22 64 9 47 Regions Visited 4 Branch Regions 3 Pre-discovered Areas . | . . . . . Known Exits Taken . | . . . . . Unknown Exits Taken 4 | 1 1 1 1 . Scrap Searched 1 | . . 1 . . Spaces Dug . | . . . . . Terrain Destroyed 24 | . 19 . . 5 Melee . | . . . . . Projectile . | . . . . . AOE 24 | . 19 . . 5 Terrain Rammed . | . . . . . Walls Destroyed . | . . . . . Machines Disabled . | . . . . . Actions | -11 -10 -10 -10 -9 --------- Run | Yrd Mat Min Exi Min Total 623 | 64 154 156 38 211 Wait 1 | 1 . . . . Move 517 | 45 139 156 36 141 Hop . | . . . . . Pick Up 28 | 10 6 . 1 11 Fast Attach . | . . . . . Attach 19 | 6 . . . 13 Detach . | . . . . . Swap 7 | 2 3 . . 2 Drop 7 | . 2 . 1 4 Fire 31 | . 4 . . 27 Melee . | . . . . . Ram . | . . . . . Kick 5 | . . . . 5 Crush 8 | . . . . 8 Escape Stasis . | . . . . . Rewire . | . . . . . Trap . | . . . . . Miscellaneous . | . . . . . Route ------- -11/Scrapyard -10/Materials -10/Mines -10/Exiles -9/Mines (discovered 1 exit: [*Mat]) History --------- Turn | Location | Event 6 | -11/Scrapyard | Discovered new exit (range 14) 80 | -11/Scrapyard | Entered Materials 238 | -10/Materials | Discovered new exit (range 17) 270 | -10/Materials | Entered Mines 306 | -10/Mines | Build established: Mutant 449 | -10/Mines | Deemed a non-threat by the Exiles lab entrance 450 | -10/Mines | Discovered new exit (range 5) 458 | -10/Mines | Entered Exiles 482 | -10/Exiles | Discovered new exit (range 15) 501 | -10/Exiles | Entered Mines 552 | -9/Mines | Assembled infested the area 586 | -9/Mines | Core integrity fell below 50% 594 | -9/Mines | Lost 4 parts (1p1n2w) 670 | -9/Mines | System corruption reached 10% 723 | -9/Mines | Lost 4 parts (1p1n2u) 732 | -9/Mines | Core integrity fell below 20% 782 | -9/Mines | Discovered new exit (range 7) 833 | -9/Mines | Destroyed by as-95038 with Assembled Maul Last Messages --------------- System corrupted: Substantial component data lost. EXIT=FOUND as-95038 sneak attacks. U-05 Engineer system corrupted by crushing effect. Acquired Huge Storage Unit. K-01 Serf system terminally corrupted. K-01 Serf collects debris. Dropped Sml. Storage Unit. K-01 Serf collects debris. System corrupted: Matter fused (-9). Welding Torch destroyed. System corrupted by crushing effect (+1). Knocked back. Acquired Lgt. EM Pulse Cannon. Ion Engine destroyed. System corrupted by crushing effect (+2). Knocked back. System corrupted: Aluminum Leg rejected. Map ----- +----------------------------------------------------+ | | | | | | | | | | | | | | | | | | | | | | | | | | | | | ?????????????????????????????????????????? | | ?????????????????????????????????????????? | | ????????????????###########??????????????? | | ????????######??# ##?????????????? | | ???????## ##?# ###???????????? | | ???????# [ ### %###### ###?????????? | | ???????# ## ###??# ##????????? | | ???????## ## ##?## #????????? | | ????????## ### ! #??## ##???????? | | ?????????# #?## #??## #???????? | | ?????????# #??##a ##?## ########? | | ?????????# #???# @< ##??# ## ## | | ?????????# ???## ]##???# # | | ?????????# ????## #????## ## | | ??????????##?????? #?????### %#?# | | ?????????????????? #?????#### #?### | | ?????????????????? #?????# %= #???## # | | ?????????????????? #?????# ##%=#???## # | | ??????????????????##?????# ## #???# # | | ??????????????????## #### #???# | | ??????????????????# ##??# | | ?????????????????# #### | | ?????????????????# =%* # | | ??????????????? #### = ## | | ?????????????? $ ##????## ### #? | | ??????????????#####????????## #?# #? | | ????????????????????????????## ##? # | | ?????????????????????????????## #?? # | | ??????????????????????????????# #?## ## | | ??????????????????????????????# #??### #? | | ??????????????????????????????# #????? #? | | ??????????????????????????????# #????? #? | | ??????????????????????????????# #????? #? | | ?????????????????????????????? #????? #? | | ??????????????????????????????##?????? #? | | ??????????????????????????????????????? #? | +----------------------------------------------------+ Best States ------------- Heat Dissipation 25 Energy Generation 10 Energy Capacity 250 Matter Stores 300 Matter Capacity 300 Sight Range 16 Terrain Scan Density 85 Armor Coverage 80 Evasion (%) 55 Recoil Reduction 2 Item Schematics ----------------- None Robot Schematics ------------------ None Fabricated ------------ Nothing Repaired ---------- Nothing Studied --------- None Alien Tech Used ----------------- None Achievements -------------- Fitting Room Challenges ------------ None Game ------ Seed ReflectiveHugeExtractor Manual? 0 Play Time 00:16:04 Cumulative 11.4 hours Start 2026.02.06 @ 16:28:48 End 2026.02.06 @ 16:41:20 Sessions 1 Manual Loads 0 Difficulty Rogue Special Mode None Game No. 22 Rogue 22 Adventurer 0 Explorer 0 Win Type - Total 0 Types 0/0/0/0/0/0/0/0/0/0 Lore% 4 Gallery% 13 Achievement% 11 Wizard Run 0 Options --------- Layout 1 ASCII 0 Keyboard 0 Movement Numpad Keybinds 0 Fullscreen 1 Font 32/SmallcapsGlow Map View 50x35 Zoom Use 0% Tactical HUD 0 Map Filters NONE Filters NONE Steam 1 RUN: 85ee1b89-6a39-487e-a716-4ce93094e62d